[Event "ESP-ch Seniors 2017"]
[Site "Altea"]
[Date "2017.10.08"]
[Round "2"]
[White "Gonzalvez Perales, Jose Luis"]
[Black "Lopez Pereyra, Antonio"]
[Result "0-1"]
[ECO "B21"]
[WhiteElo "1988"]
[BlackElo "2137"]
[Annotator "NA"]
[PlyCount "60"]
[EventDate "2017.??.??"]
[EventType "swiss"]
[EventCountry "ESP"]
[SourceTitle "playchess.com"]
[Source "ChessBase"]
[SourceQuality "1"]
[TimeControl "5400+30"]

1. e4 {[%emt 0:00:00]} c5 {[%emt 0:01:31]} 2. d4 {[%emt 0:00:00]} cxd4 {[%emt 0:00:46]} 3. c3 {[%emt 0:00:00]} Nf6 {[%emt 0:00:37]} 4. e5 {[%emt 0:00:00]} Nd5 {[%emt 0:00:08]} 5. cxd4 {[%emt 0:00:03]} e6 {[%emt 0:00:23]} 6. Nf3 {[%emt 0:00:26]} b6 {[%emt 0:00:21]} 7. Nc3 {[%emt 0:00:40]} Nxc3 {[%emt 0:00:33]} 8. bxc3 {[%emt 0:00:06]} Qc7 {[%emt 0:00:08]} 9. Bd2 {[%emt 0:15:14]} Bb7 {[%emt 0:01:04]} 10. Bd3 {[%emt 0:03:04]} d6 {[%emt 0:03:43]} 11. O-O {[%emt 0:18:55]} Nd7 {[%emt 0:04:08]} 12. Re1 {[%emt 0:14:18]} Be7 {[%emt 0:05:39]} 13. Qe2 {[%emt 0:09:14]} Rd8 {[%emt 0:03:39] B22: Sicilian: 2 c3} 14. exd6 {[%emt 0:12:54]} Bxd6 {[%emt 0:01:07]} 15. Ng5 $146 {[%emt 0:03:28]} ({Predecessor:} 15. c4 O-O 16. d5 e5 17. Qe4 f5 18. Qh4 Nc5 19. Bf1 Rde8 20. Bc3 Rf6 21. g3 Bc8 {½-½ (38) Schaefer,M (2159)-Dragnev,V (2438) Bad Wiessee 2016}) 15... Nf6 {[%emt 0:07:08]} 16. Nxe6 {[%emt 0:03:10]} fxe6 {[%emt 0:00:15]} 17. Qxe6+ {[%emt 0:00:08]} Kf8 {[%emt 0:00:15]} 18. c4 $2 {[%emt 0:04:13]} (18. h4 $17) 18... Bc8 {[%emt 0:06:29]} 19. Qe2 {[%emt 0:00:53]} Bxh2+ {[%emt 0:04:14]} 20. Kh1 {[%emt 0:02:30]} Re8 {[%emt 0:04:16]} (20... Rxd4 $19 21. Bg5 Kf7 22. Bxf6 Kxf6 23. Qf3+ Qf4 24. Qc6+ Rd6) 21. Qf3 {[%emt 0:01:15]} Bg4 {[%emt 0:10:39]} 22. Rxe8+ {[%emt 0:00:33]} Kxe8 {[%emt 0:00:06]} 23. Qa8+ {[%emt 0:00:21]} Qb8 {[%emt 0:00:21]} 24. Qc6+ {[%emt 0:00:25] [#]} Kf7 $1 {[%emt 0:03:50]} 25. c5 {[%emt 0:04:22]} Be6 {[%emt 0:01:58]} 26. Re1 {[%emt 0:01:55]} Bd5 {[%emt 0:01:10]} 27. Qb5 {[%emt 0:01:25]} bxc5 {[%emt 0:01:13]} 28. Qxc5 {[%emt 0:00:14]} Bd6 {[%emt 0:00:11]} 29. Qa5 {[%emt 0:00:42]} Qc7 {[%emt 0:03:26]} 30. Qa4 $19 {[%emt 0:02:12]} Qd7 {[%emt 0:00:29]} 0-1

[Event "ESP-ch Seniors 2017"]
[Site "Altea"]
[Date "2017.10.08"]
[Round "2"]
[White "Marin Calderon, Angel"]
[Black "Fernandez Perez, Josep"]
[Result "1/2-1/2"]
[ECO "C00"]
[WhiteElo "1924"]
[BlackElo "2045"]
[Annotator "NA"]
[PlyCount "123"]
[EventDate "2017.??.??"]
[EventType "swiss"]
[EventCountry "ESP"]
[SourceTitle "playchess.com"]
[Source "ChessBase"]
[SourceQuality "1"]
[TimeControl "5400+30"]

{[%evp 36,122,0,-24,10,32767,32767,0,-19,-13,0,-14,104,32767,32767,32767,51,38,49,32767,40,10,1,14,149,175,183,202,230,283,394,397,439,425,421,466,414,280,497,250,304,293,452,210,203,219,238,0,207,238,204,224,247,243,298,352,906,369,445,483,6119,626,32767,32767,32767,665,573,0,8,0,0,0,0,0,1430,0,0,0,0,-8,-8,-8,-8,-8,-8,-8,32767,-8,-8]} 1. e4 {[%emt 0:01:19]} e6 {[%emt 0:00:12]} 2. Nf3 {[%emt 0:01:30]} d5 3. exd5 exd5 {[%emt 0:00:51]} 4. d4 {[%emt 0:00:55]} Nf6 {[%emt 0:00:44]} 5. Be2 {[%emt 0:00:43]} Bd6 {[%emt 0:09:48]} 6. O-O {[%emt 0:00:55]} O-O {[%emt 0:00:17]} 7. Bg5 {[%emt 0:09:06]} Re8 {[%emt 0:01:22] C01: French: Exchange Variation} (7... h6 8. Bh4 Bf5 9. Nbd2 Nbd7 10. c4 dxc4 11. Nxc4 Be7 12. Nce5 Nd5 13. Bg3 Nxe5 14. Nxe5 c6 15. a3 Bd6 {½-½ (15) Vajda,L (2508)-Gonda,L (2548) Budapest 2011}) 8. c3 {[%emt 0:04:22]} Nbd7 {[%emt 0:03:54]} 9. Nbd2 {[%emt 0:00:47]} c6 {[%emt 0:00:35]} 10. Re1 {[%emt 0:03:30]} Nf8 {[%emt 0:04:08]} 11. Bd3 $146 {[%emt 0:01:10]} ({Predecessor:} 11. Qc2 Bg4 12. Bd3 Rxe1+ 13. Rxe1 h6 14. Bh4 Bxf3 15. Nxf3 Ne6 16. Ne5 g5 17. Bg3 Qc7 18. Bf5 Re8 19. Nxf7 {½-½ (19) Hochstadt,R-Charles,G Suncoast 1999}) 11... Rxe1+ {[%emt 0:00:19]} 12. Qxe1 {[%emt 0:00:36]} Ne6 {[%emt 0:01:10]} 13. Be3 {[%emt 0:03:11]} Nf4 {[%emt 0:05:58]} 14. Bxf4 {[%emt 0:04:52]} Bxf4 {[%emt 0:00:27]} 15. Qe2 {[%emt 0:03:32]} Bg4 {[%emt 0:01:31]} 16. Nf1 {[%emt 0:01:33]} Qe8 {[%emt 0:09:59]} 17. Ne3 {[%emt 0:03:20]} Bh5 {[%emt 0:12:53]} 18. h3 {[%emt 0:05:29]} Kf8 {[%emt 0:07:24]} 19. Re1 {[%emt 0:03:55]} Qe6 {[%emt 0:05:22]} 20. Bf5 {[%emt 0:11:54]} Qd6 {[%emt 0:01:58]} 21. g4 {[%emt 0:03:09]} Bg6 {[%emt 0:11:30]} 22. Bxg6 hxg6 23. Ng2 {[%emt 0:06:53]} g5 {[%emt 0:05:08]} (23... Re8 $11 {hält das Gleichgewicht.} 24. Qc2 Rxe1+ 25. Ngxe1 Qe7) 24. Nxf4 {[%emt 0:03:46]} gxf4 {[%emt 0:01:30]} 25. Qe5 {[%emt 0:02:46]} Qxe5 {[%emt 0:00:40]} 26. Rxe5 {[%emt 0:00:19]} g6 {[%emt 0:00:58]} 27. Kg2 {[%emt 0:01:39]} Ne4 {[%emt 0:03:36]} 28. g5 $1 {[%emt 0:02:20]} Re8 $1 {[%emt 0:01:52]} 29. h4 {[%emt 0:02:28]} f6 {[%emt 0:05:12]} (29... Re7 $11) 30. gxf6 {[%emt 0:01:33]} Nxf6 {[%emt 0:00:14]} 31. Rxe8+ {[%emt 0:01:19]} Kxe8 {[%emt 0:00:23]} 32. Ne5 {[%emt 0:00:12]} Nh5 {[%emt 0:01:40]} 33. Nxg6 {[%emt 0:00:44]} Kf7 {[%emt 0:00:15]} 34. Ne5+ {[%emt 0:00:21]} Ke6 {[%emt 0:00:11]} 35. Kf3 {[%emt 0:00:41]} Kf5 {[%emt 0:00:14]} 36. Nd3 {[%emt 0:01:06]} b6 $2 {[%emt 0:00:21]} (36... Nf6 37. Nc5 b6) 37. b4 {[%emt 0:00:25]} (37. Nb4 $142) 37... Nf6 {[%emt 0:00:31]} 38. Nxf4 {[%emt 0:04:55]} Ne4 {[%emt 0:00:23] [#]} (38... a6 $142 39. Ne2 Ne8 40. Ng3+ Kf6) 39. Ne2 $2 {[%emt 0:00:13]} (39. b5 $142 $1 Nd2+ (39... cxb5 40. Nxd5) 40. Ke2) 39... Nd2+ {[%emt 0:00:24]} 40. Kg3 {[%emt 0:01:03]} Ne4+ {[%emt 0:00:10] [#]} 41. Kf3 {[%emt 0:01:28]} (41. Kg2 $1 $18) 41... Nd2+ {[%emt 0:00:09]} 42. Ke3 {[%emt 0:00:25]} Nc4+ {[%emt 0:00:53]} 43. Kd3 {[%emt 0:00:17]} Kg4 {[%emt 0:00:23]} 44. Ng3 {[%emt 0:01:14]} Kxh4 {[%emt 0:01:43]} (44... b5 $142 45. h5 Nd6) 45. Nf5+ {[%emt 0:00:13]} Kg4 $2 {[%emt 0:00:13]} (45... Kg5) 46. Ne7 {[%emt 0:00:15]} b5 {[%emt 0:02:39]} 47. Nxc6 {[%emt 0:00:16]} Kf3 {[%emt 0:00:22]} (47... Kf5 $142 48. Nxa7 Nd6) 48. Nxa7 {[%emt 0:00:39]} (48. Ne5+ $142 Kf4 49. Nxc4 dxc4+ 50. Ke2) 48... Na3 {[%emt 0:00:12]} 49. Nc6 {[%emt 0:00:23]} Nc4 {[%emt 0:00:15]} 50. Ne7 {[%emt 0:02:36]} Nb6 {[%emt 0:00:03]} 51. Nxd5 $2 {[%emt 0:00:53]} ({White should try} 51. Nf5 $18) 51... Nxd5 {[%emt 0:00:18]} 52. Kc2 {[%emt 0:00:33]} Kxf2 {[%emt 0:00:06]} 53. Kb3 {[%emt 0:00:30]} Ke3 {[%emt 0:00:50]} 54. c4 {[%emt 0:00:23]} Nc7 $2 {[%emt 0:00:56]} (54... Nb6 $11 55. cxb5 Ke4) 55. d5 $2 {[%emt 0:00:13]} (55. cxb5 $18 Nxb5 56. Kc4 Nd6+ 57. Kd5) 55... Kd4 {[%emt 0:00:11]} 56. cxb5 {[%emt 0:00:46]} Nxb5 {[%emt 0:00:30]} 57. a4 {[%emt 0:00:28]} Nd6 {[%emt 0:00:11]} 58. a5 {[%emt 0:01:01]} Kxd5 {[%emt 0:00:17]} 59. Ka4 {[%emt 0:00:27]} Kc6 {[%emt 0:00:19]} 60. Kb3 {[%emt 0:01:07]} (60. b5+ $5 Nxb5 61. Kb4 $11) 60... Kb5 {[%emt 0:00:04]} 61. Kc3 {[%emt 0:00:23]} Nb7 $11 {[%emt 0:00:22]} 62. Kd4 1/2-1/2